Workbook

Sheet gederfd onderhoud
A1: gederfd levensonderhoud (het oude model)
A3: Jaar | C3: 2014 | D3: =+C3+1 -> 2015 | E3: =+D3+1 -> 2016 | F3: 2017 | G3: 2018 | H3: 2019 | I3: 2020 | J3: 2021 | K3: 2022 | L3: 2023 | M3: 2024 | N3: 2025 | O3: 2026 | P3: 2027 | Q3: 2028 | R3: 2029 | S3: 2030 | T3: 2031 | U3: 2032 | V3: 2033 | W3: 2034 | X3: 2035
A5: leeftijd partner | C5: 30 | D5: =+C5+1 -> 31 | E5: 32 | F5: 33 | G5: 34 | H5: 35 | I5: 36 | J5: 37 | K5: 38 | L5: 39 | M5: 40 | N5: 41 | O5: 42 | P5: 43 | Q5: 44 | R5: 45 | S5: 46 | T5: 47 | U5: 48 | V5: 49 | W5: 50 | X5: 51
A6: leeftijd kind 1 | C6: 0 | D6: =+C6+1 -> 1 | E6: 2 | F6: 3 | G6: 4 | H6: 5 | I6: 6 | J6: 7 | K6: 8 | L6: 9 | M6: 10 | N6: 11 | O6: 12 | P6: 13 | Q6: 14 | R6: 15 | S6: 16 | T6: 17 | U6: 18 | V6: 19 | W6: 20 | X6: 21
A7: leeftijd kind 2 | C7: 2 | D7: =+C7+1 -> 3 | E7: 4 | F7: 5 | G7: 6 | H7: 7 | I7: 8 | J7: 9 | K7: 10 | L7: 11 | M7: 12 | N7: 13 | O7: 14 | P7: 15 | Q7: 16 | R7: 17 | S7: 18 | T7: 19 | U7: 20 | V7: 21 | W7: 22 | X7: 23
A9: inkomen overledene | C9: 25,000 | D9: 25,000 | E9: 25,000 | F9: 25,000 | G9: 25,000 | H9: 25,000 | I9: 25,000 | J9: 25,000 | K9: 25,000 | L9: 25,000 | M9: 25,000 | N9: 25,000 | O9: 25,000 | P9: 25,000 | Q9: 25,000 | R9: 25,000 | S9: 25,000 | T9: 25,000 | U9: 25,000 | V9: 25,000 | W9: 25,000 | X9: 25,000
A10: inkomen partner | C10: 10,000 | D10: 10,000 | E10: 10,000 | F10: 10,000 | G10: 10,000 | H10: 10,000 | I10: 10,000 | J10: 10,000 | K10: 10,000 | L10: 10,000 | M10: 10,000 | N10: 10,000 | O10: 10,000 | P10: 10,000 | Q10: 10,000 | R10: 10,000 | S10: 10,000 | T10: 10,000 | U10: 10,000 | V10: 10,000 | W10: 10,000 | X10: 10,000
A11: inkomen kind 1 | D11: 0 | E11: 0 | F11: 0 | G11: 0 | H11: 0 | I11: 0 | J11: 0 | K11: 0 | L11: 0 | M11: 0 | N11: 0 | O11: 0 | P11: 0 | Q11: 0 | R11: 0 | S11: 0 | T11: 0 | U11: 0 | V11: 0 | W11: 0 | X11: 0
A12: inkomen kind 2 | D12: 0 | E12: 0 | F12: 0 | G12: 0 | H12: 0 | I12: 0 | J12: 0 | K12: 0 | L12: 0 | M12: 0 | N12: 0 | O12: 0 | P12: 0 | Q12: 0 | R12: 0 | S12: 0 | T12: 0 | U12: 0 | V12: 0 | W12: 0 | X12: 0
A13: netto gezinsinkomen | C13: =SUM(C9:C12) -> 35,000 | D13: 35,000 | E13: 35,000 | F13: 35,000 | G13: 35,000 | H13: 35,000 | I13: =SUM(I9:I12) -> 35,000 | J13: 35,000 | K13: 35,000 | L13: 35,000 | M13: 35,000 | N13: 35,000 | O13: =SUM(O9:O12) -> 35,000 | P13: 35,000 | Q13: 35,000 | R13: 35,000 | S13: 35,000 | T13: 35,000 | U13: =SUM(U9:U12) -> 35,000 | V13: 35,000 | W13: 35,000 | X13: 35,000
A15: vaste gezinslasten voor ongeval | B15: 45% | C15: =+$B15*C13 -> 15,750 | D15: 15,750 | E15: 15,750 | F15: 15,750 | G15: 15,750 | H15: 15,750 | I15: =+$B15*I13 -> 15,750 | J15: 15,750 | K15: 15,750 | L15: 15,750 | M15: 15,750 | N15: 15,750 | O15: =+$B15*O13 -> 15,750 | P15: 15,750 | Q15: 15,750 | R15: 15,750 | S15: 15,750 | T15: 15,750 | U15: =+$B15*U13 -> 15,750 | V15: 15,750 | W15: 15,750 | X15: 15,750
A16: variabele gezinslasten | B16: =1-B15 -> 55% | C16: =+C13-C15 -> 19,250 | D16: 19,250 | E16: 19,250 | F16: 19,250 | G16: 19,250 | H16: 19,250 | I16: =+I13-I15 -> 19,250 | J16: 19,250 | K16: 19,250 | L16: 19,250 | M16: 19,250 | N16: 19,250 | O16: =+O13-O15 -> 19,250 | P16: 19,250 | Q16: 19,250 | R16: 19,250 | S16: 19,250 | T16: 19,250 | U16: =+U13-U15 -> 19,250 | V16: 19,250 | W16: 19,250 | X16: 19,250
A18: weggevallen uitgaven overledene (variabel deel) | C18: =+C23/C22*C16 -> 8,021 | D18: 7,700 | E18: 7,404 | F18: 7,130 | G18: 6,875 | H18: 6,638 | I18: =+I23/I22*I16 -> 6,417 | J18: 6,210 | K18: 6,111 | L18: 5,923 | M18: 5,923 | N18: 5,746 | O18: =+O23/O22*O16 -> 5,746 | P18: 5,580 | Q18: 5,580 | R18: 5,423 | S18: 5,423 | T18: 5,347 | U18: =+U23/U22*U16 -> 5,347 | V18: 5,347 | W18: 5,347 | X18: 5,347
A20: vaste gezinslasten na ongeval | B20: 40% | C20: =+$B20*C13 -> 14,000 | D20: =+$B20*D13 -> 14,000 | E20: 14,000 | F20: 14,000 | G20: 14,000 | H20: 14,000 | I20: 14,000 | J20: 14,000 | K20: 14,000 | L20: 14,000 | M20: 14,000 | N20: 14,000 | O20: =+$B20*O13 -> 14,000 | P20: 14,000 | Q20: 14,000 | R20: 14,000 | S20: 14,000 | T20: 14,000 | U20: =+$B20*U13 -> 14,000 | V20: 14,000 | W20: 14,000 | X20: 14,000
A22: Amsterdamse schaal (totaal voor ongeval) | C22: =SUM(C23:C26) -> 240 | D22: 250 | E22: 260 | F22: 270 | G22: 280 | H22: 290 | I22: =SUM(I23:I26) -> 300 | J22: 310 | K22: 315 | L22: 325 | M22: 325 | N22: 335 | O22: =SUM(O23:O26) -> 335 | P22: 345 | Q22: 345 | R22: 355 | S22: 355 | T22: 360 | U22: =SUM(U23:U26) -> 360 | V22: 360 | W22: 360 | X22: 360
A23: overledene | C23: 100 | D23: 100 | E23: 100 | F23: 100 | G23: 100 | H23: 100 | I23: 100 | J23: 100 | K23: 100 | L23: 100 | M23: 100 | N23: 100 | O23: 100 | P23: 100 | Q23: 100 | R23: 100 | S23: 100 | T23: 100 | U23: 100 | V23: 100 | W23: 100 | X23: 100
A24: partner | C24: 100 | D24: 100 | E24: 100 | F24: 100 | G24: 100 | H24: 100 | I24: 100 | J24: 100 | K24: 100 | L24: 100 | M24: 100 | N24: 100 | O24: 100 | P24: 100 | Q24: 100 | R24: 100 | S24: 100 | T24: 100 | U24: 100 | V24: 100 | W24: 100 | X24: 100
A25: kind 1 | C25: 15 | D25: 20 | E25: 25 | F25: 30 | G25: 35 | H25: 40 | I25: 45 | J25: 50 | K25: 55 | L25: 60 | M25: 60 | N25: 65 | O25: 65 | P25: 70 | Q25: 70 | R25: 75 | S25: 75 | T25: 80 | U25: 80 | V25: 80 | W25: 80 | X25: 80
A26: kind 2 | C26: 25 | D26: 30 | E26: 35 | F26: 40 | G26: 45 | H26: 50 | I26: 55 | J26: 60 | K26: 60 | L26: 65 | M26: 65 | N26: 70 | O26: 70 | P26: 75 | Q26: 75 | R26: 80 | S26: 80 | T26: 80 | U26: 80 | V26: 80 | W26: 80 | X26: 80
A27: Amsterdamse schaal (totaal na ongeval) | C27: =SUM(C24:C26) -> 140 | D27: =SUM(D24:D26) -> 150 | E27: 160 | F27: 170 | G27: 180 | H27: 190 | I27: 200 | J27: 210 | K27: 215 | L27: 225 | M27: 225 | N27: 235 | O27: =SUM(O24:O26) -> 235 | P27: 245 | Q27: 245 | R27: 255 | S27: 255 | T27: 260 | U27: =SUM(U24:U26) -> 260 | V27: 260 | W27: 260 | X27: 260
A29: verdeling vaste lasten na ongeval (totaal) | C29: =SUM(C30:C32) -> 4 | D29: =SUM(D30:D32) -> 4 | E29: 4 | F29: 4 | G29: 4 | H29: 4 | I29: 4 | J29: 4 | K29: 4 | L29: 4 | M29: 4 | N29: 4 | O29: =SUM(O30:O32) -> 4 | P29: 4 | Q29: 4 | R29: 4 | S29: 4 | T29: 4 | U29: =SUM(U30:U32) -> 4 | V29: 4 | W29: 4 | X29: 4
A30: partner 1 | C30: 2 | D30: 2 | E30: 2 | F30: 2 | G30: 2 | H30: 2 | I30: 2 | J30: 2 | K30: 2 | L30: 2 | M30: 2 | N30: 2 | O30: 2 | P30: 2 | Q30: 2 | R30: 2 | S30: 2 | T30: 2 | U30: 2 | V30: 2 | W30: 2 | X30: 2
A31: kind 1 | C31: 1 | D31: 1 | E31: 1 | F31: 1 | G31: 1 | H31: 1 | I31: 1 | J31: 1 | K31: 1 | L31: 1 | M31: 1 | N31: 1 | O31: 1 | P31: 1 | Q31: 1 | R31: 1 | S31: 1 | T31: 1 | U31: 1 | V31: 1 | W31: 1 | X31: 1
A32: kind 2 | C32: 1 | D32: 1 | E32: 1 | F32: 1 | G32: 1 | H32: 1 | I32: 1 | J32: 1 | K32: 1 | L32: 1 | M32: 1 | N32: 1 | O32: 1 | P32: 1 | Q32: 1 | R32: 1 | S32: 1 | T32: 1 | U32: 1 | V32: 1 | W32: 1 | X32: 1
A34: behoefte partner (variabel) | B34: +/+ | C34: =+C24/C22*C16 -> 8,021 | D34: 7,700 | E34: 7,404 | F34: 7,130 | G34: 6,875 | H34: 6,638 | I34: 6,417 | J34: 6,210 | K34: 6,111 | L34: 5,923 | M34: 5,923 | N34: 5,746 | O34: =+O24/O22*O16 -> 5,746 | P34: 5,580 | Q34: 5,580 | R34: 5,423 | S34: 5,423 | T34: 5,347 | U34: =+U24/U22*U16 -> 5,347 | V34: 5,347 | W34: 5,347 | X34: 5,347
A35: behoefte partner (vast) | B35: +/+ | C35: =+C30/C29*C20 -> 7,000 | D35: 7,000 | E35: 7,000 | F35: 7,000 | G35: 7,000 | H35: 7,000 | I35: 7,000 | J35: 7,000 | K35: 7,000 | L35: 7,000 | M35: 7,000 | N35: 7,000 | O35: =+O30/O29*O20 -> 7,000 | P35: 7,000 | Q35: 7,000 | R35: 7,000 | S35: 7,000 | T35: 7,000 | U35: =+U30/U29*U20 -> 7,000 | V35: 7,000 | W35: 7,000 | X35: 7,000
A36: totale behoefte partner | B36: = | C36: =+C35+C34 -> 15,021 | D36: =+D35+D34 -> 14,700 | E36: 14,404 | F36: 14,130 | G36: 13,875 | H36: 13,638 | I36: 13,417 | J36: 13,210 | K36: 13,111 | L36: 12,923 | M36: 12,923 | N36: 12,746 | O36: 12,746 | P36: 12,580 | Q36: 12,580 | R36: 12,423 | S36: 12,423 | T36: 12,347 | U36: 12,347 | V36: 12,347 | W36: 12,347 | X36: 12,347
A37: toegerekend inkomen na ongeval | B37: -/- | C37: =+C24/C27*C10 -> 7,143 | D37: 6,667 | E37: 6,250 | F37: 5,882 | G37: 5,556 | H37: 5,263 | I37: 5,000 | J37: 4,762 | K37: 4,651 | L37: 4,444 | M37: 4,444 | N37: 4,255 | O37: =+O24/O27*O10 -> 4,255 | P37: 4,082 | Q37: 4,082 | R37: 3,922 | S37: 3,922 | T37: 3,846 | U37: =+U24/U27*U10 -> 3,846 | V37: 3,846 | W37: 3,846 | X37: 3,846
A38: opkomende voordelen na ongeval (ANW, pensioen) | B38: -/- | C38: 5,000 | D38: 5,000 | E38: 5,000 | F38: 5,000 | G38: 5,000 | H38: 5,000 | I38: 5,000 | J38: 5,000 | K38: 0 | L38: 0 | M38: 0 | N38: 0 | O38: 0 | P38: 0 | Q38: 0 | R38: 0 | S38: 0 | T38: 0 | U38: 0 | V38: 0 | W38: 0 | X38: 0
A39: extra kosten | B39: +/+ | C39: 0 | D39: 0 | E39: 0 | F39: 0 | G39: 0 | H39: 0 | I39: 0 | J39: 0 | K39: 0 | L39: 0 | M39: 0 | N39: 0 | O39: 0 | P39: 0 | Q39: 0 | R39: 0 | S39: 0 | T39: 0 | U39: 0 | V39: 0 | W39: 0 | X39: 0
A40: jaarlijkse schade of overschot | B40: = | C40: =+C36-C37-C38+C39 -> 2,878 | D40: =+D36-D37-D38+D39 -> 3,033 | E40: =+E36-E37-E38+E39 -> 3,154 | F40: =+F36-F37-F38+F39 -> 3,247 | G40: =+G36-G37-G38+G39 -> 3,319 | H40: =+H36-H37-H38+H39 -> 3,375 | I40: =+I36-I37-I38+I39 -> 3,417 | J40: =+J36-J37-J38+J39 -> 3,448 | K40: =+K36-K37-K38+K39 -> 8,460 | L40: =+L36-L37-L38+L39 -> 8,479 | M40: =+M36-M37-M38+M39 -> 8,479 | N40: =+N36-N37-N38+N39 -> 8,491 | O40: =+O36-O37-O38+O39 -> 8,491 | P40: =+P36-P37-P38+P39 -> 8,498 | Q40: =+Q36-Q37-Q38+Q39 -> 8,498 | R40: =+R36-R37-R38+R39 -> 8,501 | S40: =+S36-S37-S38+S39 -> 8,501 | T40: =+T36-T37-T38+T39 -> 8,501 | U40: =+U36-U37-U38+U39 -> 8,501 | V40: =+V36-V37-V38+V39 -> 8,501 | W40: =+W36-W37-W38+W39 -> 8,501 | X40: =+X36-X37-X38+X39 -> 8,501
A41: Cumulatief overschot | C41: =IF(C40<0,ABS(C40),0) -> 0 | D41: =IF((-ABS(C41)+D40)>0,0,(ABS(-ABS(C41)+D40))) -> 0 | E41: =IF((-ABS(D41)+E40)>0,0,(ABS(-ABS(D41)+E40))) -> 0 | F41: 0 | G41: 0 | H41: 0 | I41: 0 | J41: 0 | K41: 0 | L41: 0 | M41: 0 | N41: 0 | O41: 0 | P41: 0 | Q41: 0 | R41: 0 | S41: 0 | T41: 0 | U41: 0 | V41: 0 | W41: 0 | X41: 0
A42: schade wegens gederfd levensonderhoud | C42: =+IF((0-C40)<0,C40,0) -> 2,878 | D42: =+IF((C41-D40)<0,(D40-C41),0) -> 3,033 | E42: =+IF((D41-E40)<0,(E40-D41),0) -> 3,154 | F42: 3,247 | G42: 3,319 | H42: 3,375 | I42: 3,417 | J42: 3,448 | K42: 8,460 | L42: 8,479 | M42: 8,479 | N42: 8,491 | O42: 8,491 | P42: 8,498 | Q42: 8,498 | R42: 8,501 | S42: 8,501 | T42: 8,501 | U42: 8,501 | V42: 8,501 | W42: 8,501 | X42: 8,501
A43: contante waarde schade partner | C43: =+C42*C$73 -> 2,878 | D43: =+D42*D$73 -> 2,945 | E43: =+E42*E$73 -> 2,973 | F43: =+F42*F$73 -> 2,972 | G43: =+G42*G$73 -> 2,949 | H43: =+H42*H$73 -> 2,911 | I43: =+I42*I$73 -> 2,861 | J43: =+J42*J$73 -> 2,803 | K43: =+K42*K$73 -> 6,678 | L43: =+L42*L$73 -> 6,498 | M43: =+M42*M$73 -> 6,309 | N43: =+N42*N$73 -> 6,134 | O43: =+O42*O$73 -> 5,955 | P43: =+P42*P$73 -> 5,787 | Q43: =+Q42*Q$73 -> 5,618 | R43: =+R42*R$73 -> 5,456 | S43: =+S42*S$73 -> 5,298 | T43: =+T42*T$73 -> 5,143 | U43: =+U42*U$73 -> 4,993 | V43: =+V42*V$73 -> 4,848 | W43: =+W42*W$73 -> 4,707 | X43: =+X42*X$73 -> 4,570 | Y43: =SUM(C43:X43) -> 101,288
A46: behoefte kind 1 (variabel) | B46: +/+ | C46: =+C25/C22*C16 -> 1,203 | D46: =+D25/D22*D16 -> 1,540 | E46: =+E25/E22*E16 -> 1,851 | F46: =+F25/F22*F16 -> 2,139 | G46: =+G25/G22*G16 -> 2,406 | H46: =+H25/H22*H16 -> 2,655 | I46: =+I25/I22*I16 -> 2,888 | J46: =+J25/J22*J16 -> 3,105 | K46: =+K25/K22*K16 -> 3,361 | L46: =+L25/L22*L16 -> 3,554 | M46: =+M25/M22*M16 -> 3,554 | N46: =+N25/N22*N16 -> 3,735 | O46: =+O25/O22*O16 -> 3,735 | P46: =+P25/P22*P16 -> 3,906 | Q46: =+Q25/Q22*Q16 -> 3,906 | R46: =+R25/R22*R16 -> 4,067 | S46: =+S25/S22*S16 -> 4,067 | T46: =+T25/T22*T16 -> 4,278 | U46: =+U25/U22*U16 -> 4,278 | V46: =+V25/V22*V16 -> 4,278 | W46: =+W25/W22*W16 -> 4,278 | X46: =+X25/X22*X16 -> 4,278
A47: behoefte kind (vast) | B47: +/+ | C47: =+C31/C29*C20 -> 3,500 | D47: =+D31/D29*D20 -> 3,500 | E47: =+E31/E29*E20 -> 3,500 | F47: =+F31/F29*F20 -> 3,500 | G47: =+G31/G29*G20 -> 3,500 | H47: =+H31/H29*H20 -> 3,500 | I47: =+I31/I29*I20 -> 3,500 | J47: =+J31/J29*J20 -> 3,500 | K47: =+K31/K29*K20 -> 3,500 | L47: =+L31/L29*L20 -> 3,500 | M47: =+M31/M29*M20 -> 3,500 | N47: =+N31/N29*N20 -> 3,500 | O47: =+O31/O29*O20 -> 3,500 | P47: =+P31/P29*P20 -> 3,500 | Q47: =+Q31/Q29*Q20 -> 3,500 | R47: =+R31/R29*R20 -> 3,500 | S47: =+S31/S29*S20 -> 3,500 | T47: =+T31/T29*T20 -> 3,500 | U47: =+U31/U29*U20 -> 3,500 | V47: =+V31/V29*V20 -> 3,500 | W47: =+W31/W29*W20 -> 3,500 | X47: =+X31/X29*X20 -> 3,500
A48: totale behoefte kind 1 | B48: = | C48: =+C47+C46 -> 4,703 | D48: =+D47+D46 -> 5,040 | E48: 5,351 | F48: 5,639 | G48: 5,906 | H48: 6,155 | I48: 6,388 | J48: 6,605 | K48: 6,861 | L48: 7,054 | M48: 7,054 | N48: 7,235 | O48: 7,235 | P48: 7,406 | Q48: 7,406 | R48: 7,567 | S48: 7,567 | T48: 7,778 | U48: 7,778 | V48: 7,778 | W48: 7,778 | X48: 7,778
A49: toegerekend inkomen na ongeval | B49: -/- | C49: =+C25/C27*(C10+C11) -> 1,071 | D49: =+D25/D27*(D10+D11) -> 1,333 | E49: =+E25/E27*(E10+E11) -> 1,563 | F49: =+F25/F27*(F10+F11) -> 1,765 | G49: =+G25/G27*(G10+G11) -> 1,944 | H49: =+H25/H27*(H10+H11) -> 2,105 | I49: =+I25/I27*(I10+I11) -> 2,250 | J49: =+J25/J27*(J10+J11) -> 2,381 | K49: =+K25/K27*(K10+K11) -> 2,558 | L49: =+L25/L27*(L10+L11) -> 2,667 | M49: =+M25/M27*(M10+M11) -> 2,667 | N49: =+N25/N27*(N10+N11) -> 2,766 | O49: =+O25/O27*(O10+O11) -> 2,766 | P49: =+P25/P27*(P10+P11) -> 2,857 | Q49: =+Q25/Q27*(Q10+Q11) -> 2,857 | R49: =+R25/R27*(R10+R11) -> 2,941 | S49: =+S25/S27*(S10+S11) -> 2,941 | T49: =+T25/T27*(T10+T11) -> 3,077 | U49: =+U25/U27*(U10+U11) -> 3,077 | V49: =+V25/V27*(V10+V11) -> 3,077 | W49: =+W25/W27*(W10+W11) -> 3,077 | X49: =+X25/X27*(X10+X11) -> 3,077
A50: opkomende voordelen na ongeval (ANW, pensioen) | B50: -/- | C50: 1,000 | D50: 1,000 | E50: 1,000 | F50: 1,000 | G50: 1,000 | H50: 1,000 | I50: 1,000 | J50: 1,000 | K50: 1,000 | L50: 1,000 | M50: 1,000 | N50: 0 | O50: 0 | P50: 0 | Q50: 0 | R50: 0 | S50: 0 | T50: 0 | U50: 0 | V50: 0 | W50: 0 | X50: 0
A51: extra kosten | B51: +/+ | C51: 0 | D51: 0 | E51: 0 | F51: 0 | G51: 0 | H51: 0 | I51: 0 | J51: 0 | K51: 0 | L51: 0 | M51: 0 | N51: 0
A52: jaarlijkse schade of overschot kind 1 | B52: = | C52: =+C48-C49-C50+C51 -> 2,632 | D52: =+D48-D49-D50+D51 -> 2,707 | E52: =+E48-E49-E50+E51 -> 2,788 | F52: =+F48-F49-F50+F51 -> 2,874 | G52: =+G48-G49-G50+G51 -> 2,962 | H52: =+H48-H49-H50+H51 -> 3,050 | I52: =+I48-I49-I50+I51 -> 3,138 | J52: =+J48-J49-J50+J51 -> 3,224 | K52: =+K48-K49-K50+K51 -> 3,303 | L52: =+L48-L49-L50+L51 -> 3,387 | M52: =+M48-M49-M50+M51 -> 3,387 | N52: =+N48-N49-N50+N51 -> 4,469 | O52: =+O48-O49-O50+O51 -> 4,469 | P52: =+P48-P49-P50+P51 -> 4,549 | Q52: =+Q48-Q49-Q50+Q51 -> 4,549 | R52: =+R48-R49-R50+R51 -> 4,626 | S52: =+S48-S49-S50+S51 -> 4,626 | T52: =+T48-T49-T50+T51 -> 4,701 | U52: =+U48-U49-U50+U51 -> 4,701 | V52: =+V48-V49-V50+V51 -> 4,701 | W52: =+W48-W49-W50+W51 -> 4,701 | X52: =+X48-X49-X50+X51 -> 4,701
A53: Cumulatief overschot | C53: =IF(C52<0,ABS(C52),0) -> 0 | D53: =IF((-ABS(C53)+D52)>0,0,(ABS(-ABS(C53)+D52))) -> 0 | E53: =IF((-ABS(D53)+E52)>0,0,(ABS(-ABS(D53)+E52))) -> 0 | F53: =IF((-ABS(E53)+F52)>0,0,(ABS(-ABS(E53)+F52))) -> 0 | G53: =IF((-ABS(F53)+G52)>0,0,(ABS(-ABS(F53)+G52))) -> 0 | H53: =IF((-ABS(G53)+H52)>0,0,(ABS(-ABS(G53)+H52))) -> 0 | I53: =IF((-ABS(H53)+I52)>0,0,(ABS(-ABS(H53)+I52))) -> 0 | J53: =IF((-ABS(I53)+J52)>0,0,(ABS(-ABS(I53)+J52))) -> 0 | K53: =IF((-ABS(J53)+K52)>0,0,(ABS(-ABS(J53)+K52))) -> 0 | L53: =IF((-ABS(K53)+L52)>0,0,(ABS(-ABS(K53)+L52))) -> 0 | M53: =IF((-ABS(L53)+M52)>0,0,(ABS(-ABS(L53)+M52))) -> 0 | N53: =IF((-ABS(M53)+N52)>0,0,(ABS(-ABS(M53)+N52))) -> 0 | O53: =IF((-ABS(N53)+O52)>0,0,(ABS(-ABS(N53)+O52))) -> 0 | P53: =IF((-ABS(O53)+P52)>0,0,(ABS(-ABS(O53)+P52))) -> 0 | Q53: =IF((-ABS(P53)+Q52)>0,0,(ABS(-ABS(P53)+Q52))) -> 0 | R53: =IF((-ABS(Q53)+R52)>0,0,(ABS(-ABS(Q53)+R52))) -> 0 | S53: =IF((-ABS(R53)+S52)>0,0,(ABS(-ABS(R53)+S52))) -> 0 | T53: =IF((-ABS(S53)+T52)>0,0,(ABS(-ABS(S53)+T52))) -> 0 | U53: =IF((-ABS(T53)+U52)>0,0,(ABS(-ABS(T53)+U52))) -> 0 | V53: =IF((-ABS(U53)+V52)>0,0,(ABS(-ABS(U53)+V52))) -> 0 | W53: =IF((-ABS(V53)+W52)>0,0,(ABS(-ABS(V53)+W52))) -> 0 | X53: =IF((-ABS(W53)+X52)>0,0,(ABS(-ABS(W53)+X52))) -> 0
A54: schade wegens gederfd levensonderhoud | C54: =+IF((0-C52)<0,C52,0) -> 2,632 | D54: =+IF((C53-D52)<0,(D52-C53),0) -> 2,707 | E54: =+IF((D53-E52)<0,(E52-D53),0) -> 2,788 | F54: 2,874 | G54: 2,962 | H54: 3,050 | I54: 3,138 | J54: 3,224 | K54: 3,303 | L54: 3,387 | M54: 3,387 | N54: 4,469 | O54: 4,469 | P54: 4,549 | Q54: 4,549 | R54: 4,626 | S54: 4,626 | T54: 4,701 | U54: 4,701 | V54: 4,701 | W54: 4,701 | X54: 4,701
A55: contante waarde schade kind 1 | C55: =+C54*C$73 -> 2,632 | D55: =+D54*D$73 -> 2,628 | E55: =+E54*E$73 -> 2,628 | F55: =+F54*F$73 -> 2,630 | G55: =+G54*G$73 -> 2,632 | H55: =+H54*H$73 -> 2,631 | I55: =+I54*I$73 -> 2,628 | J55: =+J54*J$73 -> 2,621 | K55: =+K54*K$73 -> 2,607 | L55: =+L54*L$73 -> 2,596 | M55: =+M54*M$73 -> 2,520 | N55: =+N54*N$73 -> 3,229 | O55: =+O54*O$73 -> 3,135 | P55: =+P54*P$73 -> 3,097 | Q55: =+Q54*Q$73 -> 3,007 | R55: =+R54*R$73 -> 2,969 | S55: =+S54*S$73 -> 2,883 | T55: =+T54*T$73 -> 2,844 | U55: =+U54*U$73 -> 2,761 | V55: =+V54*V$73 -> 2,681 | W55: =+W54*W$73 -> 2,603 | X55: =+X54*X$73 -> 2,527 | Y55: =SUM(C55:X55) -> 60,489
A58: behoefte kind 2 (variabel) | B58: +/+ | C58: =+C26/C22*C16 -> 2,005 | D58: =+D26/D22*D16 -> 2,310 | E58: =+E26/E22*E16 -> 2,591 | F58: =+F26/F22*F16 -> 2,852 | G58: =+G26/G22*G16 -> 3,094 | H58: =+H26/H22*H16 -> 3,319 | I58: =+I26/I22*I16 -> 3,529 | J58: =+J26/J22*J16 -> 3,726 | K58: =+K26/K22*K16 -> 3,667 | L58: =+L26/L22*L16 -> 3,850 | M58: =+M26/M22*M16 -> 3,850 | N58: =+N26/N22*N16 -> 4,022 | O58: =+O26/O22*O16 -> 4,022 | P58: =+P26/P22*P16 -> 4,185 | Q58: =+Q26/Q22*Q16 -> 4,185 | R58: =+R26/R22*R16 -> 4,338 | S58: =+S26/S22*S16 -> 4,338 | T58: =+T26/T22*T16 -> 4,278 | U58: =+U26/U22*U16 -> 4,278 | V58: =+V26/V22*V16 -> 4,278 | W58: =+W26/W22*W16 -> 4,278 | X58: =+X26/X22*X16 -> 4,278
A59: behoefte kind (vast) | B59: +/+ | C59: =+C32/C29*C20 -> 3,500 | D59: =+D32/D29*D20 -> 3,500 | E59: =+E32/E29*E20 -> 3,500 | F59: =+F32/F29*F20 -> 3,500 | G59: =+G32/G29*G20 -> 3,500 | H59: =+H32/H29*H20 -> 3,500 | I59: =+I32/I29*I20 -> 3,500 | J59: =+J32/J29*J20 -> 3,500 | K59: =+K32/K29*K20 -> 3,500 | L59: =+L32/L29*L20 -> 3,500 | M59: =+M32/M29*M20 -> 3,500 | N59: =+N32/N29*N20 -> 3,500 | O59: =+O32/O29*O20 -> 3,500 | P59: =+P32/P29*P20 -> 3,500 | Q59: =+Q32/Q29*Q20 -> 3,500 | R59: =+R32/R29*R20 -> 3,500 | S59: =+S32/S29*S20 -> 3,500 | T59: =+T32/T29*T20 -> 3,500 | U59: =+U32/U29*U20 -> 3,500 | V59: =+V32/V29*V20 -> 3,500 | W59: =+W32/W29*W20 -> 3,500 | X59: =+X32/X29*X20 -> 3,500
A60: totale behoefte kind 2 | C60: =+C59+C58 -> 5,505 | D60: =+D59+D58 -> 5,810 | E60: 6,091 | F60: 6,352 | G60: 6,594 | H60: 6,819 | I60: 7,029 | J60: 7,226 | K60: 7,167 | L60: 7,350 | M60: 7,350 | N60: 7,522 | O60: 7,522 | P60: 7,685 | Q60: 7,685 | R60: 7,838 | S60: 7,838 | T60: 7,778 | U60: 7,778 | V60: 7,778 | W60: 7,778 | X60: 7,778
A61: toegerekend inkomen na ongeval | B61: -/- | C61: =+(C26/C27*(C10+C12)) -> 1,786 | D61: =+(D26/D27*(D10+D12)) -> 2,000 | E61: =+(E26/E27*(E10+E12)) -> 2,188 | F61: =+(F26/F27*(F10+F12)) -> 2,353 | G61: =+(G26/G27*(G10+G12)) -> 2,500 | H61: =+(H26/H27*(H10+H12)) -> 2,632 | I61: =+(I26/I27*(I10+I12)) -> 2,750 | J61: =+(J26/J27*(J10+J12)) -> 2,857 | K61: =+(K26/K27*(K10+K12)) -> 2,791 | L61: =+(L26/L27*(L10+L12)) -> 2,889 | M61: =+(M26/M27*(M10+M12)) -> 2,889 | N61: =+(N26/N27*(N10+N12)) -> 2,979 | O61: =+(O26/O27*(O10+O12)) -> 2,979 | P61: =+(P26/P27*(P10+P12)) -> 3,061 | Q61: =+(Q26/Q27*(Q10+Q12)) -> 3,061 | R61: =+(R26/R27*(R10+R12)) -> 3,137 | S61: =+(S26/S27*(S10+S12)) -> 3,137 | T61: =+(T26/T27*(T10+T12)) -> 3,077 | U61: =+(U26/U27*(U10+U12)) -> 3,077 | V61: =+(V26/V27*(V10+V12)) -> 3,077 | W61: =+(W26/W27*(W10+W12)) -> 3,077 | X61: =+(X26/X27*(X10+X12)) -> 3,077
A62: opkomende voordelen na ongeval (ANW, pensioen) | B62: -/- | C62: 1,000 | D62: 1,000 | E62: 1,000 | F62: 1,000 | G62: 1,000 | H62: 1,000 | I62: 1,000 | J62: 1,000 | K62: 1,000 | L62: 1,000 | M62: 1,000 | N62: 0 | O62: 0 | P62: 0 | Q62: 0 | R62: 0 | S62: 0 | T62: 0 | U62: 0 | V62: 0 | W62: 0 | X62: 0
A63: extra kosten | B63: +/+ | C63: 0 | D63: 0 | E63: 0 | F63: 0 | G63: 0 | H63: 0 | I63: 0 | J63: 0 | K63: 0 | L63: 0 | M63: 0 | N63: 0 | O63: 0 | P63: 0 | Q63: 0 | R63: 0 | S63: 0 | T63: 0 | U63: 0 | V63: 0 | W63: 0 | X63: 0
A64: jaarlijkse schade of overschot kind2 | B64: = | C64: =+C60-C61-C62+C63 -> 2,719 | D64: =+D60-D61-D62+D63 -> 2,810 | E64: =+E60-E61-E62+E63 -> 2,904 | F64: =+F60-F61-F62+F63 -> 2,999 | G64: =+G60-G61-G62+G63 -> 3,094 | H64: =+H60-H61-H62+H63 -> 3,187 | I64: =+I60-I61-I62+I63 -> 3,279 | J64: =+J60-J61-J62+J63 -> 3,369 | K64: =+K60-K61-K62+K63 -> 3,376 | L64: =+L60-L61-L62+L63 -> 3,461 | M64: =+M60-M61-M62+M63 -> 3,461 | N64: =+N60-N61-N62+N63 -> 4,544 | O64: =+O60-O61-O62+O63 -> 4,544 | P64: =+P60-P61-P62+P63 -> 4,624 | Q64: =+Q60-Q61-Q62+Q63 -> 4,624 | R64: =+R60-R61-R62+R63 -> 4,701 | S64: =+S60-S61-S62+S63 -> 4,701 | T64: =+T60-T61-T62+T63 -> 4,701 | U64: =+U60-U61-U62+U63 -> 4,701 | V64: =+V60-V61-V62+V63 -> 4,701 | W64: =+W60-W61-W62+W63 -> 4,701 | X64: =+X60-X61-X62+X63 -> 4,701
A65: Cumulatief overschot | C65: =IF(C64<0,ABS(C64),0) -> 0 | D65: =IF((-ABS(C65)+D64)>0,0,(ABS(-ABS(C65)+D64))) -> 0 | E65: =IF((-ABS(D65)+E64)>0,0,(ABS(-ABS(D65)+E64))) -> 0 | F65: =IF((-ABS(E65)+F64)>0,0,(ABS(-ABS(E65)+F64))) -> 0 | G65: =IF((-ABS(F65)+G64)>0,0,(ABS(-ABS(F65)+G64))) -> 0 | H65: =IF((-ABS(G65)+H64)>0,0,(ABS(-ABS(G65)+H64))) -> 0 | I65: =IF((-ABS(H65)+I64)>0,0,(ABS(-ABS(H65)+I64))) -> 0 | J65: =IF((-ABS(I65)+J64)>0,0,(ABS(-ABS(I65)+J64))) -> 0 | K65: =IF((-ABS(J65)+K64)>0,0,(ABS(-ABS(J65)+K64))) -> 0 | L65: =IF((-ABS(K65)+L64)>0,0,(ABS(-ABS(K65)+L64))) -> 0 | M65: =IF((-ABS(L65)+M64)>0,0,(ABS(-ABS(L65)+M64))) -> 0 | N65: =IF((-ABS(M65)+N64)>0,0,(ABS(-ABS(M65)+N64))) -> 0 | O65: =IF((-ABS(N65)+O64)>0,0,(ABS(-ABS(N65)+O64))) -> 0 | P65: =IF((-ABS(O65)+P64)>0,0,(ABS(-ABS(O65)+P64))) -> 0 | Q65: =IF((-ABS(P65)+Q64)>0,0,(ABS(-ABS(P65)+Q64))) -> 0 | R65: =IF((-ABS(Q65)+R64)>0,0,(ABS(-ABS(Q65)+R64))) -> 0 | S65: =IF((-ABS(R65)+S64)>0,0,(ABS(-ABS(R65)+S64))) -> 0 | T65: =IF((-ABS(S65)+T64)>0,0,(ABS(-ABS(S65)+T64))) -> 0 | U65: =IF((-ABS(T65)+U64)>0,0,(ABS(-ABS(T65)+U64))) -> 0 | V65: =IF((-ABS(U65)+V64)>0,0,(ABS(-ABS(U65)+V64))) -> 0 | W65: =IF((-ABS(V65)+W64)>0,0,(ABS(-ABS(V65)+W64))) -> 0 | X65: =IF((-ABS(W65)+X64)>0,0,(ABS(-ABS(W65)+X64))) -> 0
A66: schade wegens gederfd levensonderhoud | C66: =+IF((0-C64)<0,C64,0) -> 2,719 | D66: =+IF((C65-D64)<0,(D64-C65),0) -> 2,810 | E66: =+IF((D65-E64)<0,(E64-D65),0) -> 2,904 | F66: 2,999 | G66: 3,094 | H66: 3,187 | I66: 3,279 | J66: 3,369 | K66: 3,376 | L66: 3,461 | M66: 3,461 | N66: 4,544 | O66: 4,544 | P66: 4,624 | Q66: 4,624 | R66: 4,701 | S66: 4,701 | T66: 4,701 | U66: 4,701 | V66: 4,701 | W66: 4,701 | X66: 4,701
A67: contante waarde schade kind 2 | C67: =+C66*C$73 -> 2,719 | D67: =+D66*D$73 -> 2,728 | E67: =+E66*E$73 -> 2,737 | F67: =+F66*F$73 -> 2,744 | G67: =+G66*G$73 -> 2,749 | H67: =+H66*H$73 -> 2,749 | I67: =+I66*I$73 -> 2,746 | J67: =+J66*J$73 -> 2,739 | K67: =+K66*K$73 -> 2,665 | L67: =+L66*L$73 -> 2,653 | M67: =+M66*M$73 -> 2,575 | N67: =+N66*N$73 -> 3,282 | O67: =+O66*O$73 -> 3,187 | P67: =+P66*P$73 -> 3,148 | Q67: =+Q66*Q$73 -> 3,057 | R67: =+R66*R$73 -> 3,017 | S67: =+S66*S$73 -> 2,929 | T67: =+T66*T$73 -> 2,844 | U67: =+U66*U$73 -> 2,761 | V67: =+V66*V$73 -> 2,681 | W67: =+W66*W$73 -> 2,603 | X67: =+X66*X$73 -> 2,527 | Y67: =SUM(C67:X67) -> 61,843
Y70: =+Y67+Y55+Y43 -> 223,619
A72: rekenrente | C72: 3% | D72: 3% | E72: 3% | F72: 3% | G72: 3% | H72: 3% | I72: 3% | J72: 3% | K72: 3% | L72: 3% | M72: 3% | N72: 3% | O72: 3% | P72: 3% | Q72: 3% | R72: 3% | S72: 3% | T72: 3% | U72: 3% | V72: 3% | W72: 3% | X72: 3%
A73: contante waarde factor | C73: =1/POWER((1+C72),C$1) -> 1.000000 | D73: =1/POWER((1+D72),(D3-$C$3)) -> 0.970874 | E73: =1/POWER((1+E72),(E3-$C$3)) -> 0.942596 | F73: =1/POWER((1+F72),(F3-$C$3)) -> 0.915142 | G73: =1/POWER((1+G72),(G3-$C$3)) -> 0.888487 | H73: =1/POWER((1+H72),(H3-$C$3)) -> 0.862609 | I73: =1/POWER((1+I72),(I3-$C$3)) -> 0.837484 | J73: =1/POWER((1+J72),(J3-$C$3)) -> 0.813092 | K73: =1/POWER((1+K72),(K3-$C$3)) -> 0.789409 | L73: =1/POWER((1+L72),(L3-$C$3)) -> 0.766417 | M73: =1/POWER((1+M72),(M3-$C$3)) -> 0.744094 | N73: =1/POWER((1+N72),(N3-$C$3)) -> 0.722421 | O73: =1/POWER((1+O72),(O3-$C$3)) -> 0.701380 | P73: =1/POWER((1+P72),(P3-$C$3)) -> 0.680951 | Q73: =1/POWER((1+Q72),(Q3-$C$3)) -> 0.661118 | R73: =1/POWER((1+R72),(R3-$C$3)) -> 0.641862 | S73: =1/POWER((1+S72),(S3-$C$3)) -> 0.623167 | T73: =1/POWER((1+T72),(T3-$C$3)) -> 0.605016 | U73: =1/POWER((1+U72),(U3-$C$3)) -> 0.587395 | V73: =1/POWER((1+V72),(V3-$C$3)) -> 0.570286 | W73: =1/POWER((1+W72),(W3-$C$3)) -> 0.553676 | X73: =1/POWER((1+X72),(X3-$C$3)) -> 0.537549

Sheet amsterdamse schaal
A1: leeftijd | B1: 0 | C1: 1 | D1: 2 | E1: 3 | F1: 4 | G1: 5 | H1: 6 | I1: 7 | J1: 8 | K1: 9 | L1: 10 | M1: 11 | N1: 12 | O1: 13 | P1: 14 | Q1: 15 | R1: 16 | S1: 17 | T1: 18
B2: 15 | C2: 20 | D2: 25 | E2: 30 | F2: 35 | G2: 40 | H2: 45 | I2: 50 | J2: 55 | K2: 60 | L2: 60 | M2: 65 | N2: 65 | O2: 70 | P2: 70 | Q2: 75 | R2: 75 | S2: 80 | T2: 80
A10: Amsterdamse schaal
A12: man | B12: 100
A13: vrouw | B13: 100
A14: kind 0 jaar | B14: 15
A15: kind 1 jaar | B15: 20
A16: kind 2 jaar | B16: 25
A17: kind 3 jaar | B17: 30
A18: kind 4 jaar | B18: 35
A19: kind 5 jaar | B19: 40
A20: kind 6 jaar | B20: 45
A21: kind 7 jaar | B21: 50
A22: kind 8 jaar | B22: 55
A23: kind 9 jaar | B23: 60
A24: kind 10 jaar | B24: 60
A25: kind 11 jaar | B25: 65
A26: kind 12 jaar | B26: 65
A27: kind 13 jaar | B27: 70
A28: kind 14 jaar | B28: 70
A29: kind 15 jaar | B29: 75
A30: kind 16 jaar | B30: 75
A31: kind >= 17 jaar | B31: 80
